Workbook

Sheet 表紙
A14: 2026年前期
A15: 新聞折込広告紙数表

Sheet 取扱基準
A2: 新聞折込広告取扱基準
A5: 当社は日本新聞協会の「折込広告の取扱基準」および、新聞社の「広告掲載基準」を参考として、折込広告取扱基準を設けております。
A7: つぎのような折込チラシはお引き受けできかねます。
A10: （1） 広告の内容がはっきりしないもの。および、広告主の所在地、事業所名、ＨＰアドレス等のいずれの記載もなく、広告責任者が明確でないもの。
A12: （2） 虚偽または誇大表現により、誤認されるおそれのあるもの。「日本一」「業界一」等の最高・最大級の表現、「絶対に」「確実に」等、商品の性能、
A14: 効能、効果を保証する断定的表現を用いたもの。
A16: （3） 景表法（不当景品付販売・不当表示の禁止）、不正競争防止法（コピー商品等の販売宣伝の禁止）などのほか、薬事法、医療法など法律や条例に
A18: 触れると思われるもの。（医薬品等を否定する内容や迷信に類する非科学的な内容のもの等）
A20: （4） 広告主の主観的意見、意図、表現がみられ、他者を誹謗中傷し、結果的に他者の名誉、信用を傷つけるおそれがある表現のもの。（誹謗中傷広告等）
A22: （5）「新聞業における公正競争規約」に触れる抽選券・金券などを刷り込んだもの、クーポン付き広告に関する規則、運営細則に違反するもの。
A24: （6） 政治問題や係争中（もしくは係争が予想される）問題について、一方的な主張を述べたものや、立候補が予定されている人物の名称を記載するなど、
A26: 選挙の事前運動と推量されるもの。
A28: （7） 煽情的な言葉や、写真、イラスト等を用いた表現で、暴力・犯罪を肯定・礼讃するなど、公序良俗に反する表現のもの。
A30: （8） 不動産広告で、広告主の名称、所在地、販売物件の所在地、地目、建築の可否、建ぺい率、交通アクセス、価格、管理費、維持費、販売条件、
A32: 宅建業法による免許証番号などが明確に記載されてないもの。
A34: （9） 貸金業広告で、貸金業規制法で定められている必要事項が表示されていないもの。 （商号、名称、氏名、登録番号、住所、利率等）
A36: （10）発行本社の新聞と混同、誤認されると思われるものや、他紙の社名、題字、記事、催事などが掲載、引用されているもの。
A38: その他、著作権・肖像権・商標権等を侵害するおそれのあるもの。
A40: （11）新聞社がそれぞれ定めた広告掲載基準に照らして、新聞折込が不適当と認められるもの。
A42: （12）新聞販売店の営業活動に支障をきたし、不利益になると判断されるもの。
A46: ■ 上記に限らず、判断がむずかしいものは、新聞発行本社、関係諸機関の指導・協議によって決めさせていただきます。
A48: なお、ご不明な点がございましたら当社へご相談下さい。

Sheet 災害時注意事項
A2: 大規模災害発生時における新聞折込広告の取り扱いについて
B5: 大規模な災害（大地震、津波、洪水、豪雪、大火災、大規模停電、火山噴火、原子力発電所の事故、新型感染症の大流行、他国からの攻撃など）に見舞われた
B7: 場合、中日新聞折込広告協同組合加盟の折込会社と中日新聞販売店は被災の状況を的確に判断し、折込広告をご愛読者へお届けするために全力を傾注します。
B9: しかしながらライフラインや通信網、輸送ルートなどが遮断され、被災地の新聞販売店や従業員に甚大な被害が及んだ場合は、クライアント様のご要望にお応
B11: えできない場合もあります。
B13: この様に事前の予測と回避が不可能な事態が発生し、折込会社と新聞販売店の努力にも関わらず指定日に新聞折込が出来なかった場合、折込会社と新聞販売店
B15: は一切の責任を負う事ができません。あらかじめご容赦いただきますようお願い申しあげます。
B24: 東海地震に関する「警戒宣言」発令時の折込広告の取り扱いについて
B26: 『大地震への警戒宣言や注意情報が発令された場合、新聞折込広告は中止になります』
B29: 愛知県、三重県の大部分の市町村と岐阜県中津川市は大規模地震対策措置法により、地震防災対策強化地域に指定されています。指定された地域で大規
B31: 模な地震の発生が予知されますと、内閣総理大臣から警戒宣言が発令されることになっています。また東海地震の前兆現象が高まると、気象庁から注意
B33: 情報が発表されます。
B35: 警戒宣言発令後は交通規制が始まり、指定地域内へ車両の進入が禁止されるほか、一般の道路も時速20㎞に速度制限されるため大渋滞の発生が予想され
B37: ます。
B39: このため東海地震の注意情報や警戒宣言の発令と同時に、お客様からお預かりした新聞折込広告の配送作業は「中止」させていただきます。配送中の車
B41: 両に対しては折込広告をお預かりした状態ですみやかに帰社するように指示しますが、交通事情と警察官の指示によって止むを得ず路上に駐車し避難し
B43: なければならない事も想定されます。
B45: すでに配送が完了した新聞折込広告も、新聞販売店での組み込み作業が「中止」になり新聞折込ができなくなります。幸い注意情報や警戒宣言が解除
B47: された場合も、混乱が解消するまでしばらくの間は新聞折込ができない場合もあります。
B49: 何卒ご理解とご了承をいただけますようお願いいたします。

Sheet 広告主様へのお願い
A2: 広告主様へのお願い
A4: 1. 配布明細の連絡について
A6: 折込先配布明細のご指示は、ＦＡＸまたはメールで必ずチラシの搬入期日以前にご連絡下さい。
A8: 折込広告は、発送配布の都合上、50枚を単位として扱います。
A10: 配布指定部数と実際の部数が異なるときは、当社において一部配布数の変更、隣接地区への配布など、調整を行わせて頂く場合があります。
A12: 配布明細連絡をいただく際、正確なサイズをご指示願います。
A14: ※ 特に普通紙と厚紙の紙区別は注意して下さい。（四六版 110㎏より厚紙扱いとなります）
A16: ※ 新聞に収まる形状が原則ですが、例えばＢ４二ツ折の場合は二ツ折（Ｂ３）単価の適用となります。
B18: 合売記号の見方
B21: C…中日 N…日経 A…朝日 M…毎日 Y…読売 G…岐阜 I…伊勢 S…産経
B24: 合売店については、取扱い部数が多い媒体の欄に記載となります。
B26: ☆…月曜日折込不可
B28: △…折込日が休刊日翌日の場合、先送り地区
A31: 2. 折込広告の搬入時間について
A33: ※ 折込日2日前ＡＭ10時（日・祝日除く）までに搬入して下さい。但し下記地区は3日前ＡＭ10時（日・祝日除く）までに搬入して下さい。
A35: 田原市、新城市（設楽地区）、北設楽郡、三重県南勢地区
A37: （上記以外の場合は随時お問い合わせ下さい。）
A39: ※ 搬入時間を外れた持込みおよび、配布明細の事前連絡のない場合、折込指定日の責は負いかねます。
A41: ※ 折込広告の各新聞店への発送後の中止、変更等は出来かねます。
A43: ※ 年末年始、ゴールデンウィーク、お盆期間等については変則となります。
A46: 3. 行政区表示について
A48: 紙数表は実際の行政区と異なる地区もあります。資料は参考として掲載してありますので行政区へ指定・限定とした場合、
A50: 一部区域が入らない時と指定以外の地区に入ったりする場合が生じますので事前に当社までご相談下さい。

Sheet 広告主様へのお願い (2)
A2: 4. 月曜日および新聞休刊日の翌日は、一部地域において、折込できないところがあります。（下記一覧表参照）
A4: また選挙の開票報道等の都合で、新聞が遅れるときは、折込できません。
A6: ※下記の地区または販売店は地域事情などにより折込の条件が異なります。ご注意ください。
B8: ①月曜日折込不可
B10: 該当販売店
B11: 岐阜県郡上市：正ヶ洞 岐阜県高山市：国府
B14: ②休刊日翌日折込が先送りとなる地区
B16: 該当地区
B17: 愛知県新城市（設楽地区） 北設楽郡
A20: 5. パンフレット・小冊子に類するもの等は、その形状・内容により判断させて頂きます。
A23: 6. 二つ以上の事業所が連合（連名）して行う広告は、連合広告となり、一部地区で料金が異なったり、取り扱い不可となる場合があります。
A25: 必ず事前にご相談下さい。内容により判断させて頂きます。
A28: 〈適用外〉
A30: ・実在する商店街、夏祭り等実行委員会、テナント、ショッピングモール等。
A32: ・パチンコ・映画館・サウナなど、同じ敷地にある複合施設。
A34: ・オーナーが同一の企業グループ広告。
A36: ・複数企業が業務提携や同一テーマに基づき共同制作したコラボレーション広告。
A38: （但し、連絡先などの記載は広告責任者1社に限る。）
A40: ・雑誌・情報誌が、自誌ＰＲを目的に実際の誌面を使用再構成した広告。
A42: ・落成広告（企業名を掲載する企業が協賛企業であり、営利目的でないこと）
A45: 7. 折込広告の在庫管理に関して
A47: 次回以降の折込広告も同時に持ち込まれるお客様に対しましては、弊社配送センターにて
A49: 預かりを承りますが、保管期間は原則１ヶ月とさせて頂きます。
A52: 8. 全国取り次ぎを行っております。ご用の際はご相談下さい。

Sheet 三重県
A1: 折込日 | F1: 広告主 | O1: サイズ | S1: 取次店
F2: チラシ銘柄 | O2: 部数 | P2: =S27 -> 0
A3: 三重県 | U3: 2026年前期（3月1日以降）
A4: 地区 | B4: 中日新聞 | E4: 朝日新聞 | H4: 毎日新聞 | K4: 読売新聞 | N4: その他 | Q4: 合 計 | T4: 備考
A5: 桑名市 | B5: =VALUE(TRIM(LEFT(桑名市・桑名郡!E26,2))) -> 10 | C5: =桑名市・桑名郡!F26 -> 21050 | D5: =桑名市・桑名郡!G26 -> 0 | E5: =VALUE(TRIM(LEFT(桑名市・桑名郡!I26,2))) -> 4 | F5: =桑名市・桑名郡!J26 -> 8950 | G5: =桑名市・桑名郡!K26 -> 0 | H5: =VALUE(TRIM(LEFT(桑名市・桑名郡!M26,2))) -> 0 | I5: =桑名市・桑名郡!N26 -> 0 | J5: =桑名市・桑名郡!O26 -> 0 | K5: =VALUE(TRIM(LEFT(桑名市・桑名郡!Q26,2))) -> 2 | L5: =桑名市・桑名郡!R26 -> 2150 | M5: =桑名市・桑名郡!S26 -> 0 | N5: =VALUE(TRIM(LEFT(桑名市・桑名郡!U26,2))) -> 0 | O5: =桑名市・桑名郡!V26 -> 0 | P5: =桑名市・桑名郡!W26 -> 0 | Q5: =SUM(B5,E5,H5,K5,N5) -> 16 | R5: =SUM(C5,F5,I5,L5,O5) -> 32150 | S5: =IFERROR((SUM(D5,G5,J5,M5,P5))," ") -> 0
A6: 桑名郡 | B6: =VALUE(TRIM(LEFT(桑名市・桑名郡!E48,2))) -> 1 | C6: =桑名市・桑名郡!F48 -> 0 | D6: =桑名市・桑名郡!G48 -> 0 | E6: =VALUE(TRIM(LEFT(桑名市・桑名郡!I48,2))) -> 0 | F6: =桑名市・桑名郡!J48 -> 0 | G6: =桑名市・桑名郡!K48 -> 0 | H6: =VALUE(TRIM(LEFT(桑名市・桑名郡!M48,2))) -> 0 | I6: =桑名市・桑名郡!N48 -> 0 | J6: =桑名市・桑名郡!O48 -> 0 | K6: =VALUE(TRIM(LEFT(桑名市・桑名郡!Q48,2))) -> 0 | L6: =桑名市・桑名郡!R48 -> 0 | M6: =桑名市・桑名郡!S48 -> 0 | N6: =VALUE(TRIM(LEFT(桑名市・桑名郡!U48,2))) -> 0 | O6: =桑名市・桑名郡!V48 -> 0 | P6: =桑名市・桑名郡!W48 -> 0 | Q6: 1 | R6: 0 | S6: 0
A7: いなべ市 | B7: =VALUE(TRIM(LEFT(いなべ市・員弁郡!E26,2))) -> 6 | C7: =いなべ市・員弁郡!F26 -> 7500 | D7: =いなべ市・員弁郡!G26 -> 0 | E7: =VALUE(TRIM(LEFT(いなべ市・員弁郡!I26,2))) -> 0 | F7: =いなべ市・員弁郡!J26 -> 0 | G7: =いなべ市・員弁郡!K26 -> 0 | H7: =VALUE(TRIM(LEFT(いなべ市・員弁郡!M26,2))) -> 0 | I7: =いなべ市・員弁郡!N26 -> 0 | J7: =いなべ市・員弁郡!O26 -> 0 | K7: =VALUE(TRIM(LEFT(いなべ市・員弁郡!Q26,2))) -> 2 | L7: =いなべ市・員弁郡!R26 -> 550 | M7: =いなべ市・員弁郡!S26 -> 0 | N7: =VALUE(TRIM(LEFT(いなべ市・員弁郡!U26,2))) -> 0 | O7: =いなべ市・員弁郡!V26 -> 0 | P7: =いなべ市・員弁郡!W26 -> 0 | Q7: 8 | R7: 8050 | S7: 0
A8: 員弁郡 | B8: =VALUE(TRIM(LEFT(いなべ市・員弁郡!E48,2))) -> 1 | C8: =いなべ市・員弁郡!F48 -> 3200 | D8: =いなべ市・員弁郡!G48 -> 0 | E8: =VALUE(TRIM(LEFT(いなべ市・員弁郡!I48,2))) -> 0 | F8: =いなべ市・員弁郡!J48 -> 0 | G8: =いなべ市・員弁郡!K48 -> 0 | H8: =VALUE(TRIM(LEFT(いなべ市・員弁郡!M48,2))) -> 0 | I8: =いなべ市・員弁郡!N48 -> 0 | J8: =いなべ市・員弁郡!O48 -> 0 | K8: =VALUE(TRIM(LEFT(いなべ市・員弁郡!Q48,2))) -> 1 | L8: =いなべ市・員弁郡!R48 -> 350 | M8: =いなべ市・員弁郡!S48 -> 0 | N8: =VALUE(TRIM(LEFT(いなべ市・員弁郡!U48,2))) -> 0 | O8: =いなべ市・員弁郡!V48 -> 0 | P8: =いなべ市・員弁郡!W48 -> 0 | Q8: 2 | R8: 3550 | S8: 0
A9: 四日市市 | B9: =VALUE(TRIM(LEFT(四日市市!E48,2))) -> 20 | C9: =四日市市!F48 -> 41750 | D9: =四日市市!G48 -> 0 | E9: =VALUE(TRIM(LEFT(四日市市!I48,2))) -> 11 | F9: =四日市市!J48 -> 12700 | G9: =四日市市!K48 -> 0 | H9: =VALUE(TRIM(LEFT(四日市市!M48,2))) -> 4 | I9: =四日市市!N48 -> 7400 | J9: =四日市市!O48 -> 0 | K9: =VALUE(TRIM(LEFT(四日市市!Q48,2))) -> 11 | L9: =四日市市!R48 -> 4750 | M9: =四日市市!S48 -> 0 | N9: =VALUE(TRIM(LEFT(四日市市!U48,2))) -> 0 | O9: =四日市市!V48 -> 0 | P9: =四日市市!W48 -> 0 | Q9: 46 | R9: 66600 | S9: 0
A10: 三重郡 | B10: =VALUE(TRIM(LEFT(三重郡・亀山市・鈴鹿市!E14,2))) -> 6 | C10: =三重郡・亀山市・鈴鹿市!F14 -> 9750 | D10: =三重郡・亀山市・鈴鹿市!G14 -> 0 | E10: =VALUE(TRIM(LEFT(三重郡・亀山市・鈴鹿市!I14,2))) -> 2 | F10: =三重郡・亀山市・鈴鹿市!J14 -> 1100 | G10: =三重郡・亀山市・鈴鹿市!K14 -> 0 | H10: =VALUE(TRIM(LEFT(三重郡・亀山市・鈴鹿市!M14,2))) -> 0 | I10: =三重郡・亀山市・鈴鹿市!N14 -> 0 | J10: =三重郡・亀山市・鈴鹿市!O14 -> 0 | K10: =VALUE(TRIM(LEFT(三重郡・亀山市・鈴鹿市!Q14,2))) -> 1 | L10: =三重郡・亀山市・鈴鹿市!R14 -> 650 | M10: =三重郡・亀山市・鈴鹿市!S14 -> 0 | N10: =VALUE(TRIM(LEFT(三重郡・亀山市・鈴鹿市!U14,2))) -> 0 | O10: =三重郡・亀山市・鈴鹿市!V14 -> 0 | P10: =三重郡・亀山市・鈴鹿市!W14 -> 0 | Q10: 9 | R10: 11500 | S10: 0
A11: 亀山市 | B11: =VALUE(TRIM(LEFT(三重郡・亀山市・鈴鹿市!E27,2))) -> 6 | C11: =三重郡・亀山市・鈴鹿市!F27 -> 7350 | D11: =三重郡・亀山市・鈴鹿市!G27 -> 0 | E11: =VALUE(TRIM(LEFT(三重郡・亀山市・鈴鹿市!I27,2))) -> 2 | F11: =三重郡・亀山市・鈴鹿市!J27 -> 2050 | G11: =三重郡・亀山市・鈴鹿市!K27 -> 0 | H11: =VALUE(TRIM(LEFT(三重郡・亀山市・鈴鹿市!M27,2))) -> 0 | I11: =三重郡・亀山市・鈴鹿市!N27 -> 0 | J11: =三重郡・亀山市・鈴鹿市!O27 -> 0 | K11: =VALUE(TRIM(LEFT(三重郡・亀山市・鈴鹿市!Q27,2))) -> 1 | L11: =三重郡・亀山市・鈴鹿市!R27 -> 800 | M11: =三重郡・亀山市・鈴鹿市!S27 -> 0 | N11: =VALUE(TRIM(LEFT(三重郡・亀山市・鈴鹿市!U27,2))) -> 0 | O11: =三重郡・亀山市・鈴鹿市!V27 -> 0 | P11: =三重郡・亀山市・鈴鹿市!W27 -> 0 | Q11: 9 | R11: 10200 | S11: 0
A12: 鈴鹿市 | B12: =VALUE(TRIM(LEFT(三重郡・亀山市・鈴鹿市!E48,2))) -> 13 | C12: =三重郡・亀山市・鈴鹿市!F48 -> 25600 | D12: =三重郡・亀山市・鈴鹿市!G48 -> 0 | E12: =VALUE(TRIM(LEFT(三重郡・亀山市・鈴鹿市!I48,2))) -> 7 | F12: =三重郡・亀山市・鈴鹿市!J48 -> 10600 | G12: =三重郡・亀山市・鈴鹿市!K48 -> 0 | H12: =VALUE(TRIM(LEFT(三重郡・亀山市・鈴鹿市!M48,2))) -> 5 | I12: =三重郡・亀山市・鈴鹿市!N48 -> 3300 | J12: =三重郡・亀山市・鈴鹿市!O48 -> 0 | K12: =VALUE(TRIM(LEFT(三重郡・亀山市・鈴鹿市!Q48,2))) -> 4 | L12: =三重郡・亀山市・鈴鹿市!R48 -> 2650 | M12: =三重郡・亀山市・鈴鹿市!S48 -> 0 | N12: =VALUE(TRIM(LEFT(三重郡・亀山市・鈴鹿市!U48,2))) -> 0 | O12: =三重郡・亀山市・鈴鹿市!V48 -> 0 | P12: =三重郡・亀山市・鈴鹿市!W48 -> 0 | Q12: 29 | R12: 42150 | S12: 0
A13: 津市 | B13: =VALUE(TRIM(LEFT(津市!E48,2))) -> 29 | C13: =津市!F48 -> 45550 | D13: =津市!G48 -> 0 | E13: =VALUE(TRIM(LEFT(津市!I48,2))) -> 3 | F13: =津市!J48 -> 9650 | G13: =津市!K48 -> 0 | H13: =VALUE(TRIM(LEFT(津市!M48,2))) -> 4 | I13: =津市!N48 -> 4850 | J13: =津市!O48 -> 0 | K13: =VALUE(TRIM(LEFT(津市!Q48,2))) -> 11 | L13: =津市!R48 -> 7000 | M13: =津市!S48 -> 0 | N13: =VALUE(TRIM(LEFT(津市!U48,2))) -> 0 | O13: =津市!V48 -> 0 | P13: =津市!W48 -> 0 | Q13: =SUM(B13,E13,H13,K13,N13) -> 47 | R13: 67050 | S13: 0
A14: 松阪市 | B14: =VALUE(TRIM(LEFT(松阪市・多気郡!E26,2))) -> 14 | C14: =松阪市・多気郡!F26 -> 20950 | D14: =松阪市・多気郡!G26 -> 0 | E14: =VALUE(TRIM(LEFT(松阪市・多気郡!I26,2))) -> 5 | F14: =松阪市・多気郡!J26 -> 8450 | G14: =松阪市・多気郡!K26 -> 0 | H14: =VALUE(TRIM(LEFT(松阪市・多気郡!M26,2))) -> 0 | I14: =松阪市・多気郡!N26 -> 0 | J14: =松阪市・多気郡!O26 -> 0 | K14: =VALUE(TRIM(LEFT(松阪市・多気郡!Q26,2))) -> 7 | L14: =松阪市・多気郡!R26 -> 5200 | M14: =松阪市・多気郡!S26 -> 0 | N14: =VALUE(TRIM(LEFT(松阪市・多気郡!U26,2))) -> 0 | O14: =松阪市・多気郡!V26 -> 0 | P14: =松阪市・多気郡!W26 -> 0 | Q14: 26 | R14: 34600 | S14: 0
A15: 多気郡 | B15: =VALUE(TRIM(LEFT(松阪市・多気郡!E48,2))) -> 5 | C15: =松阪市・多気郡!F48 -> 6000 | D15: =松阪市・多気郡!G48 -> 0 | E15: =VALUE(TRIM(LEFT(松阪市・多気郡!I48,2))) -> 1 | F15: =松阪市・多気郡!J48 -> 1900 | G15: =松阪市・多気郡!K48 -> 0 | H15: =VALUE(TRIM(LEFT(松阪市・多気郡!M48,2))) -> 0 | I15: =松阪市・多気郡!N48 -> 0 | J15: =松阪市・多気郡!O48 -> 0 | K15: =VALUE(TRIM(LEFT(松阪市・多気郡!Q48,2))) -> 1 | L15: =松阪市・多気郡!R48 -> 500 | M15: =松阪市・多気郡!S48 -> 0 | N15: =VALUE(TRIM(LEFT(松阪市・多気郡!U48,2))) -> 0 | O15: =松阪市・多気郡!V48 -> 0 | P15: =松阪市・多気郡!W48 -> 0 | Q15: 7 | R15: 8400 | S15: 0
A16: 伊勢市 | B16: =VALUE(TRIM(LEFT(伊勢市・度会郡!E26,2))) -> 11 | C16: =伊勢市・度会郡!F26 -> 20100 | D16: =伊勢市・度会郡!G26 -> 0 | E16: =VALUE(TRIM(LEFT(伊勢市・度会郡!I26,2))) -> 3 | F16: =伊勢市・度会郡!J26 -> 4650 | G16: =伊勢市・度会郡!K26 -> 0 | H16: =VALUE(TRIM(LEFT(伊勢市・度会郡!M26,2))) -> 8 | I16: =伊勢市・度会郡!N26 -> 8850 | J16: =伊勢市・度会郡!O26 -> 0 | K16: =VALUE(TRIM(LEFT(伊勢市・度会郡!Q26,2))) -> 5 | L16: =伊勢市・度会郡!R26 -> 4650 | M16: =伊勢市・度会郡!S26 -> 0 | N16: =VALUE(TRIM(LEFT(伊勢市・度会郡!U26,2))) -> 1 | O16: =伊勢市・度会郡!V26 -> 950 | P16: =伊勢市・度会郡!W26 -> 0 | Q16: 28 | R16: 39200 | S16: 0
A17: 度会郡 | B17: =VALUE(TRIM(LEFT(伊勢市・度会郡!E48,2))) -> 13 | C17: =伊勢市・度会郡!F48 -> 5400 | D17: =伊勢市・度会郡!G48 -> 0 | E17: =VALUE(TRIM(LEFT(伊勢市・度会郡!I48,2))) -> 0 | F17: =伊勢市・度会郡!J48 -> 0 | G17: =伊勢市・度会郡!K48 -> 0 | H17: =VALUE(TRIM(LEFT(伊勢市・度会郡!M48,2))) -> 0 | I17: =伊勢市・度会郡!N48 -> 0 | J17: =伊勢市・度会郡!O48 -> 0 | K17: =VALUE(TRIM(LEFT(伊勢市・度会郡!Q48,2))) -> 2 | L17: =伊勢市・度会郡!R48 -> 1400 | M17: =伊勢市・度会郡!S48 -> 0 | N17: =VALUE(TRIM(LEFT(伊勢市・度会郡!U48,2))) -> 0 | O17: =伊勢市・度会郡!V48 -> 0 | P17: =伊勢市・度会郡!W48 -> 0 | Q17: 15 | R17: 6800 | S17: 0
A18: 鳥羽市 | B18: =VALUE(TRIM(LEFT(鳥羽市・志摩市・尾鷲市!E14,2))) -> 2 | C18: =鳥羽市・志摩市・尾鷲市!F14 -> 3150 | D18: =鳥羽市・志摩市・尾鷲市!G14 -> 0 | E18: =VALUE(TRIM(LEFT(鳥羽市・志摩市・尾鷲市!I14,2))) -> 0 | F18: =鳥羽市・志摩市・尾鷲市!J14 -> 0 | G18: =鳥羽市・志摩市・尾鷲市!K14 -> 0 | H18: =VALUE(TRIM(LEFT(鳥羽市・志摩市・尾鷲市!M14,2))) -> 0 | I18: =鳥羽市・志摩市・尾鷲市!N14 -> 0 | J18: =鳥羽市・志摩市・尾鷲市!O14 -> 0 | K18: =VALUE(TRIM(LEFT(鳥羽市・志摩市・尾鷲市!Q14,2))) -> 2 | L18: =鳥羽市・志摩市・尾鷲市!R14 -> 900 | M18: =鳥羽市・志摩市・尾鷲市!S14 -> 0 | N18: =VALUE(TRIM(LEFT(鳥羽市・志摩市・尾鷲市!U14,2))) -> 0 | O18: =鳥羽市・志摩市・尾鷲市!V14 -> 0 | P18: =鳥羽市・志摩市・尾鷲市!W14 -> 0 | Q18: 4 | R18: 4050 | S18: 0
A19: 志摩市 | B19: =VALUE(TRIM(LEFT(鳥羽市・志摩市・尾鷲市!E31,2))) -> 4 | C19: =鳥羽市・志摩市・尾鷲市!F31 -> 9000 | D19: =鳥羽市・志摩市・尾鷲市!G31 -> 0 | E19: =VALUE(TRIM(LEFT(鳥羽市・志摩市・尾鷲市!I31,2))) -> 0 | F19: =鳥羽市・志摩市・尾鷲市!J31 -> 0 | G19: =鳥羽市・志摩市・尾鷲市!K31 -> 0 | H19: =VALUE(TRIM(LEFT(鳥羽市・志摩市・尾鷲市!M31,2))) -> 0 | I19: =鳥羽市・志摩市・尾鷲市!N31 -> 0 | J19: =鳥羽市・志摩市・尾鷲市!O31 -> 0 | K19: =VALUE(TRIM(LEFT(鳥羽市・志摩市・尾鷲市!Q31,2))) -> 6 | L19: =鳥羽市・志摩市・尾鷲市!R31 -> 3250 | M19: =鳥羽市・志摩市・尾鷲市!S31 -> 0 | N19: =VALUE(TRIM(LEFT(鳥羽市・志摩市・尾鷲市!U31,2))) -> 0 | O19: =鳥羽市・志摩市・尾鷲市!V31 -> 0 | P19: =鳥羽市・志摩市・尾鷲市!W31 -> 0 | Q19: 10 | R19: 12250 | S19: 0
A20: 尾鷲市 | B20: =VALUE(TRIM(LEFT(鳥羽市・志摩市・尾鷲市!E48,2))) -> 4 | C20: =鳥羽市・志摩市・尾鷲市!F48 -> 3600 | D20: =鳥羽市・志摩市・尾鷲市!G48 -> 0 | E20: =VALUE(TRIM(LEFT(鳥羽市・志摩市・尾鷲市!I48,2))) -> 0 | F20: =鳥羽市・志摩市・尾鷲市!J48 -> 0 | G20: =鳥羽市・志摩市・尾鷲市!K48 -> 0 | H20: =VALUE(TRIM(LEFT(鳥羽市・志摩市・尾鷲市!M48,2))) -> 0 | I20: =鳥羽市・志摩市・尾鷲市!N48 -> 0 | J20: =鳥羽市・志摩市・尾鷲市!O48 -> 0 | K20: =VALUE(TRIM(LEFT(鳥羽市・志摩市・尾鷲市!Q48,2))) -> 1 | L20: =鳥羽市・志摩市・尾鷲市!R48 -> 850 | M20: =鳥羽市・志摩市・尾鷲市!S48 -> 0 | N20: =VALUE(TRIM(LEFT(鳥羽市・志摩市・尾鷲市!U48,2))) -> 0 | O20: =鳥羽市・志摩市・尾鷲市!V48 -> 0 | P20: =鳥羽市・志摩市・尾鷲市!W48 -> 0 | Q20: 5 | R20: 4450 | S20: 0
A21: 熊野市 | B21: =VALUE(TRIM(LEFT(熊野市・北牟婁郡・南牟婁郡!E14,2))) -> 3 | C21: =熊野市・北牟婁郡・南牟婁郡!F14 -> 3450 | D21: =熊野市・北牟婁郡・南牟婁郡!G14 -> 0 | E21: =VALUE(TRIM(LEFT(熊野市・北牟婁郡・南牟婁郡!I14,2))) -> 1 | F21: =熊野市・北牟婁郡・南牟婁郡!J14 -> 850 | G21: =熊野市・北牟婁郡・南牟婁郡!K14 -> 0 | H21: =VALUE(TRIM(LEFT(熊野市・北牟婁郡・南牟婁郡!M14,2))) -> 0 | I21: =熊野市・北牟婁郡・南牟婁郡!N14 -> 0 | J21: =熊野市・北牟婁郡・南牟婁郡!O14 -> 0 | K21: =VALUE(TRIM(LEFT(熊野市・北牟婁郡・南牟婁郡!Q14,2))) -> 1 | L21: =熊野市・北牟婁郡・南牟婁郡!R14 -> 1050 | M21: =熊野市・北牟婁郡・南牟婁郡!S14 -> 0 | N21: =VALUE(TRIM(LEFT(熊野市・北牟婁郡・南牟婁郡!U14,2))) -> 0 | O21: =熊野市・北牟婁郡・南牟婁郡!V14 -> 0 | P21: =熊野市・北牟婁郡・南牟婁郡!W14 -> 0 | Q21: 5 | R21: 5350 | S21: 0
A22: 北牟婁郡 | B22: =VALUE(TRIM(LEFT(熊野市・北牟婁郡・南牟婁郡!E30,2))) -> 5 | C22: =熊野市・北牟婁郡・南牟婁郡!F30 -> 4500 | D22: =熊野市・北牟婁郡・南牟婁郡!G30 -> 0 | E22: =VALUE(TRIM(LEFT(熊野市・北牟婁郡・南牟婁郡!I30,2))) -> 0 | F22: =熊野市・北牟婁郡・南牟婁郡!J30 -> 0 | G22: =熊野市・北牟婁郡・南牟婁郡!K30 -> 0 | H22: =VALUE(TRIM(LEFT(熊野市・北牟婁郡・南牟婁郡!M30,2))) -> 0 | I22: =熊野市・北牟婁郡・南牟婁郡!N30 -> 0 | J22: =熊野市・北牟婁郡・南牟婁郡!O30 -> 0 | K22: =VALUE(TRIM(LEFT(熊野市・北牟婁郡・南牟婁郡!Q30,2))) -> 2 | L22: =熊野市・北牟婁郡・南牟婁郡!R30 -> 550 | M22: =熊野市・北牟婁郡・南牟婁郡!S30 -> 0 | N22: =VALUE(TRIM(LEFT(熊野市・北牟婁郡・南牟婁郡!U30,2))) -> 0 | O22: =熊野市・北牟婁郡・南牟婁郡!V30 -> 0 | P22: =熊野市・北牟婁郡・南牟婁郡!W30 -> 0 | Q22: 7 | R22: 5050 | S22: 0
A23: 南牟婁郡 | B23: =VALUE(TRIM(LEFT(熊野市・北牟婁郡・南牟婁郡!E48,2))) -> 2 | C23: =熊野市・北牟婁郡・南牟婁郡!F48 -> 100 | D23: =熊野市・北牟婁郡・南牟婁郡!G48 -> 0 | E23: =VALUE(TRIM(LEFT(熊野市・北牟婁郡・南牟婁郡!I48,2))) -> 0 | F23: =熊野市・北牟婁郡・南牟婁郡!J48 -> 0 | G23: =熊野市・北牟婁郡・南牟婁郡!K48 -> 0 | H23: =VALUE(TRIM(LEFT(熊野市・北牟婁郡・南牟婁郡!M48,2))) -> 4 | I23: =熊野市・北牟婁郡・南牟婁郡!N48 -> 2700 | J23: =熊野市・北牟婁郡・南牟婁郡!O48 -> 0 | K23: =VALUE(TRIM(LEFT(熊野市・北牟婁郡・南牟婁郡!Q48,2))) -> 1 | L23: =熊野市・北牟婁郡・南牟婁郡!R48 -> 1550 | M23: =熊野市・北牟婁郡・南牟婁郡!S48 -> 0 | N23: =VALUE(TRIM(LEFT(熊野市・北牟婁郡・南牟婁郡!U48,2))) -> 0 | O23: =熊野市・北牟婁郡・南牟婁郡!V48 -> 0 | P23: =熊野市・北牟婁郡・南牟婁郡!W48 -> 0 | Q23: 7 | R23: 4350 | S23: 0
A24: 伊賀市 | B24: =VALUE(TRIM(LEFT(伊賀市・名張市・新宮市!E22,2))) -> 4 | C24: =伊賀市・名張市・新宮市!F22 -> 3150 | D24: =伊賀市・名張市・新宮市!G22 -> 0 | E24: =VALUE(TRIM(LEFT(伊賀市・名張市・新宮市!I22,2))) -> 8 | F24: =伊賀市・名張市・新宮市!J22 -> 8200 | G24: =伊賀市・名張市・新宮市!K22 -> 0 | H24: =VALUE(TRIM(LEFT(伊賀市・名張市・新宮市!M22,2))) -> 1 | I24: =伊賀市・名張市・新宮市!N22 -> 1050 | J24: =伊賀市・名張市・新宮市!O22 -> 0 | K24: =VALUE(TRIM(LEFT(伊賀市・名張市・新宮市!Q22,2))) -> 2 | L24: =伊賀市・名張市・新宮市!R22 -> 4200 | M24: =伊賀市・名張市・新宮市!S22 -> 0 | N24: =VALUE(TRIM(LEFT(伊賀市・名張市・新宮市!U22,2))) -> 9 | O24: =伊賀市・名張市・新宮市!V22 -> 650 | P24: =伊賀市・名張市・新宮市!W22 -> 0 | Q24: 24 | R24: 17250 | S24: 0
A25: 名張市 | B25: =VALUE(TRIM(LEFT(伊賀市・名張市・新宮市!E38,2))) -> 3 | C25: =伊賀市・名張市・新宮市!F38 -> 1700 | D25: =伊賀市・名張市・新宮市!G38 -> 0 | E25: =VALUE(TRIM(LEFT(伊賀市・名張市・新宮市!I38,2))) -> 2 | F25: =伊賀市・名張市・新宮市!J38 -> 6200 | G25: =伊賀市・名張市・新宮市!K38 -> 0 | H25: =VALUE(TRIM(LEFT(伊賀市・名張市・新宮市!M38,2))) -> 2 | I25: =伊賀市・名張市・新宮市!N38 -> 2000 | J25: =伊賀市・名張市・新宮市!O38 -> 0 | K25: =VALUE(TRIM(LEFT(伊賀市・名張市・新宮市!Q38,2))) -> 1 | L25: =伊賀市・名張市・新宮市!R38 -> 5350 | M25: =伊賀市・名張市・新宮市!S38 -> 0 | N25: =VALUE(TRIM(LEFT(伊賀市・名張市・新宮市!U38,2))) -> 2 | O25: =伊賀市・名張市・新宮市!V38 -> 450 | P25: =伊賀市・名張市・新宮市!W38 -> 0 | Q25: 10 | R25: 15700 | S25: 0
A26: 新宮市 | B26: =VALUE(TRIM(LEFT(伊賀市・名張市・新宮市!E48,2))) -> 1 | C26: =伊賀市・名張市・新宮市!F48 -> 350 | D26: =伊賀市・名張市・新宮市!G48 -> 0 | E26: =VALUE(TRIM(LEFT(伊賀市・名張市・新宮市!I48,2))) -> 0 | F26: =伊賀市・名張市・新宮市!J48 -> 0 | G26: =伊賀市・名張市・新宮市!K48 -> 0 | H26: =VALUE(TRIM(LEFT(伊賀市・名張市・新宮市!M48,2))) -> 2 | I26: =伊賀市・名張市・新宮市!N48 -> 2050 | J26: =伊賀市・名張市・新宮市!O48 -> 0 | K26: =VALUE(TRIM(LEFT(伊賀市・名張市・新宮市!Q48,2))) -> 2 | L26: =伊賀市・名張市・新宮市!R48 -> 1700 | M26: =伊賀市・名張市・新宮市!S48 -> 0 | N26: =VALUE(TRIM(LEFT(伊賀市・名張市・新宮市!U48,2))) -> 2 | O26: =伊賀市・名張市・新宮市!V48 -> 300 | P26: =伊賀市・名張市・新宮市!W48 -> 0 | Q26: =SUM(B26,E26,H26,K26,N26) -> 7 | R26: 4400 | S26: 0
A27: 合計 | B27: =SUM(B5:B26) -> 163 | C27: =SUM(C5:C26) -> 243200 | D27: =SUM(D5:D26) -> 0 | E27: 49 | F27: 75300 | G27: =SUM(G5:G26) -> 0 | H27: 30 | I27: 32200 | J27: =SUM(J5:J26) -> 0 | K27: 66 | L27: =SUM(L5:L26) -> 50050 | M27: 0 | N27: 14 | O27: 2350 | P27: 0 | Q27: 322 | R27: 403100 | S27: 0
U28: ㈱中日総合サービス

Sheet 地図

Sheet 桑名市・桑名郡
A1: 折込日 | F1: 広告主 | Q1: サイズ | V1: 取次店
F2: チラシ銘柄 | Q2: 部数 | R2: =A6+A30 -> 0
A4: 地区 | D4: 中日新聞 | G4: 枚数 | H4: 朝日新聞 | K4: 枚数 | L4: 毎日新聞 | O4: 枚数 | P4: 読売新聞 | S4: 枚数 | T4: その他 | W4: 枚数 | X4: 備考
A5: 桑名市 | D5: 240120101010 | E5: 桑名東部NS | F5: 2350 | H5: 240120202020 | I5: 桑名MI | J5: 4200 | P5: 240120405003 | Q5: 桑名南部 | R5: 1000
A6: =SUM(G26,K26,O26,S26,W26) -> 0 | B6: =SUM(F26,J26,N26,R26,V26) -> 32150 | D6: 240120101020 | E6: 桑名南部NS | F6: 3150 | H6: 240120202030 | I6: 桑名西部MI | J6: 1400 | P6: 240120405004 | Q6: 桑名西部 | R6: 1150
D7: 240120101090 | E7: 桑名中央NS | F7: 1700 | H7: 240120202040 | I7: 大山田M | J7: 1100
D8: 240120101040 | E8: 桑名正和N | F8: 850 | H8: 240120202050 | I8: 東員M | J8: 2250
D9: 240120101080 | E9: 桑名久米NS | F9: 1000
D10: 240120101060 | E10: 大山田団地NSI | F10: 3400
D11: 240120101110 | E11: 蓮花寺NSI | F11: 2900
D12: 240120101070 | E12: 深谷NAMYSI | F12: 850
D13: 240120101120 | E13: 多度NAMYSI | F13: 2050
D14: 240120101140 | E14: 桑名長島NAMSI | F14: 2800
E26: =CONCATENATE(FIXED(COUNTA(E5:E25),0,0)," 店") -> 10 店 | F26: =SUM(F5:F25) -> 21050 | G26: =SUM(G5:G25) -> 0 | I26: =CONCATENATE(FIXED(COUNTA(I5:I25),0,0)," 店") -> 4 店 | J26: =SUM(J5:J25) -> 8950 | K26: =SUM(K5:K25) -> 0 | M26: =CONCATENATE(FIXED(COUNTA(M5:M25),0,0)," 店") -> 0 店 | N26: =SUM(N5:N25) -> 0 | O26: =SUM(O5:O25) -> 0 | Q26: =CONCATENATE(FIXED(COUNTA(Q5:Q25),0,0)," 店") -> 2 店 | R26: =SUM(R5:R25) -> 2150 | S26: =SUM(S5:S25) -> 0 | U26: =CONCATENATE(FIXED(COUNTA(U5:U25),0,0)," 店") -> 0 店 | V26: =SUM(V5:V25) -> 0 | W26: =SUM(W5:W25) -> 0 | X26: =SUM(X5:X25) -> 0
A28: 地区 | D28: 中日新聞 | G28: 枚数 | H28: 朝日新聞 | K28: 枚数 | L28: 毎日新聞 | O28: 枚数 | P28: 読売新聞 | S28: 枚数 | T28: その他 | W28: 枚数 | X28: 備考
A29: 桑名郡 | C29: ※ | E29: 木曽岬NＡＭSI | X29: ※尾張弥富市欄
A30: =SUM(G48,K48,O48,S48,W48) -> 0 | B30: =SUM(F48,J48,N48,R48,V48) -> 0
E48: =CONCATENATE(FIXED(COUNTA(E29:E47),0,0)," 店") -> 1 店 | F48: =SUM(F29:F47) -> 0 | G48: =SUM(G29:G47) -> 0 | I48: =CONCATENATE(FIXED(COUNTA(I29:I47),0,0)," 店") -> 0 店 | J48: =SUM(J29:J47) -> 0 | K48: =SUM(K29:K47) -> 0 | M48: =CONCATENATE(FIXED(COUNTA(M29:M47),0,0)," 店") -> 0 店 | N48: =SUM(N29:N47) -> 0 | O48: =SUM(O29:O47) -> 0 | Q48: =CONCATENATE(FIXED(COUNTA(Q29:Q47),0,0)," 店") -> 0 店 | R48: =SUM(R29:R47) -> 0 | S48: =SUM(S29:S47) -> 0 | U48: =CONCATENATE(FIXED(COUNTA(U29:U47),0,0)," 店") -> 0 店 | V48: =SUM(V29:V47) -> 0 | W48: =SUM(W29:W47) -> 0 | X48: =SUM(X29:X47) -> 0
A49: 2026年前期（3月1日以降） | X49: ㈱中日総合サービス

Sheet いなべ市・員弁郡
A1: 折込日 | F1: 広告主 | Q1: サイズ | V1: 取次店
F2: チラシ銘柄 | Q2: 部数 | R2: =A6+A30 -> 0
A4: 地区 | D4: 中日新聞 | G4: 枚数 | H4: 朝日新聞 | K4: 枚数 | L4: 毎日新聞 | O4: 枚数 | P4: 読売新聞 | S4: 枚数 | T4: その他 | W4: 枚数 | X4: 備考
A5: いなべ市 | D5: 240140101060 | E5: 梅戸井NAMSI | F5: 800 | P5: 240140405002 | Q5: いなべ | R5: 400
A6: =SUM(G26,K26,O26,S26,W26) -> 0 | B6: =SUM(F26,J26,N26,R26,V26) -> 8050 | D6: 240140101070 | E6: 石榑NAMI | F6: 1000 | P6: 240140405001 | Q6: 北勢町 | R6: 150
D7: 240140101030 | E7: 員弁NAMSI | F7: 1450
D8: 240140101040 | E8: 阿下喜NAMSI | F8: 1650
D9: 240140101050 | E9: 員弁治田NAMSI | F9: 1150
D10: 240140101080 | E10: 藤原NAMYSI | F10: 1450
E26: =CONCATENATE(FIXED(COUNTA(E5:E25),0,0)," 店") -> 6 店 | F26: =SUM(F5:F25) -> 7500 | G26: =SUM(G5:G25) -> 0 | I26: =CONCATENATE(FIXED(COUNTA(I5:I25),0,0)," 店") -> 0 店 | J26: =SUM(J5:J25) -> 0 | K26: =SUM(K5:K25) -> 0 | M26: =CONCATENATE(FIXED(COUNTA(M5:M25),0,0)," 店") -> 0 店 | N26: =SUM(N5:N25) -> 0 | O26: =SUM(O5:O25) -> 0 | Q26: =CONCATENATE(FIXED(COUNTA(Q5:Q25),0,0)," 店") -> 2 店 | R26: =SUM(R5:R25) -> 550 | S26: =SUM(S5:S25) -> 0 | U26: =CONCATENATE(FIXED(COUNTA(U5:U25),0,0)," 店") -> 0 店 | V26: =SUM(V5:V25) -> 0 | W26: =SUM(W5:W25) -> 0 | X26: =SUM(X5:X25) -> 0
A28: 地区 | D28: 中日新聞 | G28: 枚数 | H28: 朝日新聞 | K28: 枚数 | L28: 毎日新聞 | O28: 枚数 | P28: 読売新聞 | S28: 枚数 | T28: その他 | W28: 枚数 | X28: 備考
A29: 員弁郡 | D29: 240121101020 | E29: 西桑名ネオポリスNSI | F29: 3200 | P29: 240121405010 | Q29: 東員町 | R29: 350 | X29: 員弁郡全域の場合
A30: =SUM(G48,K48,O48,S48,W48) -> 0 | B30: =SUM(F48,J48,N48,R48,V48) -> 3550 | X30: 四日市市四日市保々
X31: 500枚をプラス
A33: =SUM(F41,J41,N41,R41,V41) -> 0 | B33: =SUM(G41,K41,O41,S41,W41) -> 0
E48: =CONCATENATE(FIXED(COUNTA(E29:E47),0,0)," 店") -> 1 店 | F48: =SUM(F29:F47) -> 3200 | G48: =SUM(G29:G47) -> 0 | I48: =CONCATENATE(FIXED(COUNTA(I29:I47),0,0)," 店") -> 0 店 | J48: =SUM(J29:J47) -> 0 | K48: =SUM(K29:K47) -> 0 | M48: =CONCATENATE(FIXED(COUNTA(M29:M47),0,0)," 店") -> 0 店 | N48: =SUM(N29:N47) -> 0 | O48: =SUM(O29:O47) -> 0 | Q48: =CONCATENATE(FIXED(COUNTA(Q29:Q47),0,0)," 店") -> 1 店 | R48: =SUM(R29:R47) -> 350 | S48: =SUM(S29:S47) -> 0 | U48: =CONCATENATE(FIXED(COUNTA(U29:U47),0,0)," 店") -> 0 店 | V48: =SUM(V29:V47) -> 0 | W48: =SUM(W29:W47) -> 0 | X48: =SUM(X29:X47) -> 0
A49: 2026年前期（3月1日以降） | X49: ㈱中日総合サービス

Sheet 四日市市
A1: 折込日 | F1: 広告主 | Q1: サイズ | V1: 取次店
F2: チラシ銘柄 | Q2: 部数 | R2: =A6 -> 0
A4: 地区 | D4: 中日新聞 | G4: 枚数 | H4: 朝日新聞 | K4: 枚数 | L4: 毎日新聞 | O4: 枚数 | P4: 読売新聞 | S4: 枚数 | T4: その他 | W4: 枚数 | X4: 備考
A5: 四日市市 | D5: 240110101260 | E5: 四日市あかつきNM | F5: 3200 | H5: 240110202010 | I5: 山城MI | J5: 1200 | L5: 240110303010 | M5: 四日市北部A | N5: 2000 | P5: 240110405010 | Q5: 四日市 | R5: 150 | X5: 四日市市全域の場合
A6: =SUM(G48,K48,O48,S48,W48) -> 0 | B6: =SUM(F48,J48,N48,R48,V48) -> 66600 | C6: *1 | D6: 240110101010 | E6: 富田（生川）NS | F6: 3650 | H6: 240110202030 | I6: 阿倉川N | J6: 450 | L6: 240110303090 | M6: 四日市南部A | N6: 4200 | P6: 240110405020 | Q6: 四日市常磐 | R6: 650 | X6: 鈴鹿市加佐登150枚
D7: 240110101240 | E7: 四日市羽津NS | F7: 2350 | H7: 240110202035 | I7: 富洲原NI | J7: 600 | L7: 240110303130 | M7: 四日市笹川 | N7: 700 | P7: 240110405030 | Q7: 四日市水沢 | R7: 150 | X7: をプラス
D8: 240110101340 | E8: 四日市あがたNMI | F8: 1350 | H8: 240110202040 | I8: 四日市販売NI | J8: 3550 | L8: 240110303170 | M8: 四日市采女 | N8: 500 | P8: 240110405008 | Q8: 四日市笹川 | R8: 450
C9: *2 | D9: 240110101040 | E9: 四日市保々NMSI | F9: 2550 | H9: 240110202050 | I9: 四日市桜I | J9: 800 | P9: 240110405002 | Q9: 四日市南部乙 | R9: 600 | X9: *1富洲原地区
D10: 240110101280 | E10: 四日市橋北NSI | F10: 1800 | H10: 240110202051 | I10: 生桑NM | J10: 1500 | P10: 240110405003 | Q10: 四日市橋北 | R10: 300 | X10: （一部川越南）
D11: 240110101290 | E11: 阿倉川NSI | F11: 1850 | H11: 240110202080 | I11: 日野M | J11: 1000 | P11: 240110405004 | Q11: 四日市北部 | R11: 900
D12: 240110101230 | E12: 四日市生桑NSI | F12: 1750 | H12: 240110202090 | I12: 日永I | J12: 950 | P12: 240110405005 | Q12: 四日市西部 | R12: 450 | X12: *2員弁郡東員町
D13: 240110101060 | E13: 三重平NSI | F13: 1200 | H13: 240110202110 | I13: 四日市駅前N | J13: 750 | P13: 240110405006 | Q13: 四日市羽津 | R13: 600 | X13: 500枚含む
D14: 240110101090 | E14: 四日市中央NSI | F14: 2650 | H14: 240110202120 | I14: 高花平I | J14: 100 | P14: 240110405007 | Q14: 塩浜 | R14: 150
D15: 240110101080 | E15: 四日市常磐NS | F15: 2800 | H15: 240110202130 | I15: 四日市南NM | J15: 1800 | P15: 240110405009 | Q15: 楠 | R15: 350
D16: 240110101160 | E16: 四日市南部NS | F16: 2000
D17: 240110101120 | E17: 塩浜NI | F17: 1700
D18: 240110101180 | E18: 四日市笹川NS | F18: 1800
D19: 240110101270 | E19: 四日市波木NS | F19: 1200
D20: 240110101140 | E20: 四日市内部NSI | F20: 1750
D21: 240110101170 | E21: 四日市西部NAMSI | F21: 1950
D22: 240110101220 | E22: 四日市川島NMSI | F22: 2700
D23: 240110101190 | E23: 四日市桜NMI | F23: 1950
D24: 240110101320 | E24: 三重楠 | F24: 1550
E48: =CONCATENATE(FIXED(COUNTA(E5:E47),0,0)," 店") -> 20 店 | F48: =SUM(F5:F47) -> 41750 | G48: =SUM(G5:G47) -> 0 | I48: =CONCATENATE(FIXED(COUNTA(I5:I47),0,0)," 店") -> 11 店 | J48: =SUM(J5:J47) -> 12700 | K48: =SUM(K5:K47) -> 0 | M48: =CONCATENATE(FIXED(COUNTA(M5:M47),0,0)," 店") -> 4 店 | N48: =SUM(N5:N47) -> 7400 | O48: =SUM(O5:O47) -> 0 | Q48: =CONCATENATE(FIXED(COUNTA(Q5:Q47),0,0)," 店") -> 11 店 | R48: =SUM(R5:R47) -> 4750 | S48: =SUM(S5:S47) -> 0 | U48: =CONCATENATE(FIXED(COUNTA(U5:U47),0,0)," 店") -> 0 店 | V48: =SUM(V5:V47) -> 0 | W48: =SUM(W5:W47) -> 0 | X48: =SUM(X5:X47) -> 0
A49: 2026年前期（3月1日以降） | X49: ㈱中日総合サービス

Sheet 三重郡・亀山市・鈴鹿市
A1: 折込日 | F1: 広告主 | Q1: サイズ | V1: 取次店
F2: チラシ銘柄 | Q2: 部数 | R2: =A6+A18+A31 -> 0
A4: 地区 | D4: 中日新聞 | G4: 枚数 | H4: 朝日新聞 | K4: 枚数 | L4: 毎日新聞 | O4: 枚数 | P4: 読売新聞 | S4: 枚数 | T4: その他 | W4: 枚数 | X4: 備考
A5: 三重郡 | D5: 240150101070 | E5: 伊勢朝日NM | F5: 1550 | H5: 240150202040 | I5: 三重朝日I | J5: 600 | P5: 240150405001 | Q5: 菰野町 | R5: 650
A6: =SUM(G14,K14,O14,S14,W14) -> 0 | B6: =SUM(F14,J14,N14,R14,V14) -> 11500 | D6: 240150101040 | E6: 菰野NAMI | F6: 3650 | H6: 240150202020 | I6: 菰野東I | J6: 500
D7: 240150101030 | E7: 菰野朝上NAMSI | F7: 1400
D8: 240150101050 | E8: 鵜川原NM | F8: 1300
D9: 240150101090 | E9: 川越南NS | F9: 900
D10: 240150101080 | E10: 川越北NMS | F10: 950
E14: =CONCATENATE(FIXED(COUNTA(E5:E13),0,0)," 店") -> 6 店 | F14: =SUM(F5:F13) -> 9750 | G14: =SUM(G5:G13) -> 0 | I14: =CONCATENATE(FIXED(COUNTA(I5:I13),0,0)," 店") -> 2 店 | J14: =SUM(J5:J13) -> 1100 | K14: =SUM(K5:K13) -> 0 | M14: =CONCATENATE(FIXED(COUNTA(M5:M13),0,0)," 店") -> 0 店 | N14: =SUM(N5:N13) -> 0 | O14: =SUM(O5:O13) -> 0 | Q14: =CONCATENATE(FIXED(COUNTA(Q5:Q13),0,0)," 店") -> 1 店 | R14: =SUM(R5:R13) -> 650 | S14: =SUM(S5:S13) -> 0 | U14: =CONCATENATE(FIXED(COUNTA(U5:U13),0,0)," 店") -> 0 店 | V14: =SUM(V5:V13) -> 0 | W14: =SUM(W5:W13) -> 0 | X14: =SUM(X5:X13) -> 0
A16: 地区 | D16: 中日新聞 | G16: 枚数 | H16: 朝日新聞 | K16: 枚数 | L16: 毎日新聞 | O16: 枚数 | P16: 読売新聞 | S16: 枚数 | T16: その他 | W16: 枚数 | X16: 備考
A17: 亀山市 | D17: 240205101010 | E17: 亀山中央NMSI | F17: 1600 | H17: 240205202010 | I17: 亀山 | J17: 850 | P17: 240205405001 | Q17: 亀山 | R17: 800 | X17: 亀山市全域の場合
A18: =SUM(G27,K27,O27,S27,W27) -> 0 | B18: =SUM(F27,J27,N27,R27,V27) -> 10200 | C18: *1 | D18: 240205101070 | E18: 亀山南部NMSI | F18: 1550 | H18: 240205202020 | I18: 井田川 | J18: 1200 | X18: 津市椋本50枚
D19: 240205101040 | E19: 亀山北部NAMSI | F19: 2350 | X19: 鈴鹿市鈴峰350枚
C20: *2 | D20: 240205101030 | E20: 下ノ庄NAMSI | F20: 600 | X20: をプラス
D21: 240205101060 | E21: 加太NAMSI | F21: 250
D22: 240205101080 | E22: 亀山関NAMSI | F22: 1000 | X22: *1津市50枚含む
X24: *2鈴鹿市300枚含む
E27: =CONCATENATE(FIXED(COUNTA(E17:E26),0,0)," 店") -> 6 店 | F27: =SUM(F17:F26) -> 7350 | G27: =SUM(G17:G26) -> 0 | I27: =CONCATENATE(FIXED(COUNTA(I17:I26),0,0)," 店") -> 2 店 | J27: =SUM(J17:J26) -> 2050 | K27: =SUM(K17:K26) -> 0 | M27: =CONCATENATE(FIXED(COUNTA(M17:M26),0,0)," 店") -> 0 店 | N27: =SUM(N17:N26) -> 0 | O27: =SUM(O17:O26) -> 0 | Q27: =CONCATENATE(FIXED(COUNTA(Q17:Q26),0,0)," 店") -> 1 店 | R27: =SUM(R17:R26) -> 800 | S27: =SUM(S17:S26) -> 0 | U27: =CONCATENATE(FIXED(COUNTA(U17:U26),0,0)," 店") -> 0 店 | V27: =SUM(V17:V26) -> 0 | W27: =SUM(W17:W26) -> 0 | X27: =SUM(X17:X26) -> 0
A29: 地区 | D29: 中日新聞 | G29: 枚数 | H29: 朝日新聞 | K29: 枚数 | L29: 毎日新聞 | O29: 枚数 | P29: 読売新聞 | S29: 枚数 | T29: その他 | W29: 枚数 | X29: 備考
A30: 鈴鹿市 | D30: 240210101010 | E30: 長太の浦NMSI | F30: 1500 | H30: 240210202010 | I30: 伊勢若松 | J30: 1000 | L30: 240210303010 | M30: 石薬師 | N30: 300 | P30: 240210405001 | Q30: 鈴鹿南部 | R30: 600 | X30: 鈴鹿市全域の場合
A31: =SUM(G48,K48,O48,S48,W48) -> 0 | B31: =SUM(F48,J48,N48,R48,V48) -> 42150 | D31: 240210101030 | E31: 伊勢若松NMSI | F31: 1950 | H31: 240210202020 | I31: 伊勢神戸 | J31: 1500 | L31: 240210303022 | M31: 鈴鹿国府 | N31: 300 | P31: 240210405002 | Q31: 鈴鹿北部 | R31: 550 | X31: 亀山市下ノ庄300枚
D32: 240210101040 | E32: 白子NMSI | F32: 2750 | H32: 240210202030 | I32: 平田 | J32: 1450 | L32: 240210303030 | M32: 白子 | N32: 550 | P32: 240210405003 | Q32: 鈴鹿南部(磯山) | R32: 500 | X32: をプラス
D33: 240210101160 | E33: 鈴鹿旭が丘NMSI | F33: 1700 | H33: 240210202040 | I33: 白子南 | J33: 1550 | L33: 240210303070 | M33: 平田 | N33: 1950 | P33: 240210405004 | Q33: 鈴鹿平田 | R33: 1000
D34: 240210101050 | E34: 鈴鹿磯山NMSI | F34: 1350 | H34: 240210202050 | I34: 白子西I | J34: 3100 | L34: 240210303080 | M34: 鈴鹿北部 | N34: 200
D35: 240210101060 | E35: 鈴鹿栄NSI | F35: 1200 | H35: 240210202080 | I35: 玉垣 | J35: 1300
D36: 240210101070 | E36: いせ神戸北部NMSI | F36: 2400 | H36: 240210202070 | I36: 石薬師MI | J36: 700
D37: 240210101080 | E37: いせ神戸南部NMSI | F37: 1600
D38: 240210101100 | E38: 鈴鹿桜島NMSI | F38: 2250
D39: 240210101110 | E39: 鈴鹿平田NSI | F39: 3850
C40: *1 | D40: 240210101120 | E40: 加佐登N | F40: 1950
C41: *2 | D41: 240210101130 | E41: 鈴峰NMSI | F41: 1950 | X41: *1四日市市150枚含む
D42: 240210101140 | E42: 鈴鹿国府NSI | F42: 1150 | X42: *2亀山市350枚含む
E48: =CONCATENATE(FIXED(COUNTA(E30:E47),0,0)," 店") -> 13 店 | F48: =SUM(F30:F47) -> 25600 | G48: =SUM(G30:G47) -> 0 | I48: =CONCATENATE(FIXED(COUNTA(I30:I47),0,0)," 店") -> 7 店 | J48: =SUM(J30:J47) -> 10600 | K48: =SUM(K30:K47) -> 0 | M48: =CONCATENATE(FIXED(COUNTA(M30:M47),0,0)," 店") -> 5 店 | N48: =SUM(N30:N47) -> 3300 | O48: =SUM(O30:O47) -> 0 | Q48: =CONCATENATE(FIXED(COUNTA(Q30:Q47),0,0)," 店") -> 4 店 | R48: =SUM(R30:R47) -> 2650 | S48: =SUM(S30:S47) -> 0 | U48: =CONCATENATE(FIXED(COUNTA(U30:U47),0,0)," 店") -> 0 店 | V48: =SUM(V30:V47) -> 0 | W48: =SUM(W30:W47) -> 0 | X48: =SUM(X30:X47) -> 0
A49: 2026年前期（3月1日以降） | X49: ㈱中日総合サービス

Sheet 津市
A1: 折込日 | F1: 広告主 | Q1: サイズ | V1: 取次店
F2: チラシ銘柄 | Q2: 部数 | R2: =A6 -> 0
A4: 地区 | D4: 中日新聞 | G4: 枚数 | H4: 朝日新聞 | K4: 枚数 | L4: 毎日新聞 | O4: 枚数 | P4: 読売新聞 | S4: 枚数 | T4: その他 | W4: 枚数 | X4: 備考
A5: 津市 | D5: 240220101010 | E5: 津白塚NAMSI | F5: 1950 | H5: 240220202010 | I5: 津中央NI | J5: 4350 | L5: 240220303030 | M5: 津 | N5: 900 | P5: 240220405001 | Q5: 津駅前 | R5: 900 | T5: 240220I09010 | X5: 津市全域の場合
A6: =SUM(G48,K48,O48,S48,W48) -> 0 | B6: =SUM(F48,J48,N48,R48,V48) -> 67050 | D6: 240220101030 | E6: 津一身田NAMSI | F6: 3000 | H6: 240220202050 | I6: 津駅西NI | J6: 3100 | L6: 240220303040 | M6: 橋北 | N6: 1250 | P6: 240220405002 | Q6: 津中央 | R6: 500 | T6: 240220S07010 | X6: 亀山市亀山南部50枚
D7: 240220101080 | E7: 津高野尾NAMSI | F7: 1300 | H7: 240220202140 | I7: 津久居I | J7: 2200 | L7: 240220303050 | M7: 橋南 | N7: 1250 | P7: 240220405003 | Q7: 津新町 | R7: 550 | X7: をプラス
D8: 240220101040 | E8: 津（大光堂）NSI | F8: 2850 | L8: 240220303060 | M8: 久居 | N8: 1450 | P8: 240220405004 | Q8: 豊里 | R8: 400
D9: 240220101045 | E9: 津新町NSI | F9: 2000 | P9: 240220405005 | Q9: 津南部 | R9: 1350
D10: 240220101310 | E10: 津橋北NMSI | F10: 1950 | P10: 240220405006 | Q10: 津半田 | R10: 1100
D11: 240220101050 | E11: 津西が丘SI | F11: 1900 | P11: 240220405007 | Q11: 津・芸濃 | R11: 550
D12: 240220101060 | E12: 津橋南NSI | F12: 3150 | P12: 240220405008 | Q12: 津・久居 | R12: 900
D13: 240220101070 | E13: 津南が丘NSI | F13: 1250 | P13: 240220405009 | Q13: 榊原町 | R13: 200
D14: 240220101100 | E14: 津安濃NAMSI | F14: 1750 | P14: 240220405010 | Q14: 一志 | R14: 350
D15: 240220101290 | E15: 津片田東NAMSI | F15: 2050 | P15: 240220405011 | Q15: 白山 | R15: 200
D16: 240220101300 | E16: 津片田西NAMSI | F16: 1400
D17: 240220101120 | E17: 津高茶屋NMS | F17: 2150
D18: 240220101130 | E18: 津雲出NAMSI | F18: 1600
D19: 240220101140 | E19: 久居東部NS | F19: 1650
D20: 240220101150 | E20: 久居NS | F20: 1050
D21: 240220101160 | E21: 久居西部NS | F21: 900
D22: 240220101170 | E22: 久居南部NS | F22: 1300
D23: 240220101180 | E23: 榊原NAMSI | F23: 400
D24: 240220101190 | E24: 千里ヶ丘NAMSI | F24: 1550
D25: 240220101200 | E25: 豊津上野NAMSI | F25: 2050
C26: *1 | D26: 240220101210 | E26: 椋本NAMSI | F26: 1050
D27: 240220101220 | E27: 北神山NAMSI | F27: 600 | X27: *1亀山市50枚含む
D28: 240220101230 | E28: 津一志NAMSI | F28: 2600
D29: 240220101240 | E29: 白山NAMSI | F29: 2200
D30: 240220101250 | E30: 家城NAMI | F30: 450
D31: 240220101260 | E31: 伊勢竹原NAMYSI | F31: 300
D32: 240220101270 | E32: 八知NAMYSI | F32: 600
D33: 240220101280 | E33: 奥津NAMYSI | F33: 550
E48: =CONCATENATE(FIXED(COUNTA(E5:E47),0,0)," 店") -> 29 店 | F48: =SUM(F5:F47) -> 45550 | G48: =SUM(G5:G47) -> 0 | I48: =CONCATENATE(FIXED(COUNTA(I5:I47),0,0)," 店") -> 3 店 | J48: =SUM(J5:J47) -> 9650 | K48: =SUM(K5:K47) -> 0 | M48: =CONCATENATE(FIXED(COUNTA(M5:M47),0,0)," 店") -> 4 店 | N48: =SUM(N5:N47) -> 4850 | O48: =SUM(O5:O47) -> 0 | Q48: =CONCATENATE(FIXED(COUNTA(Q5:Q47),0,0)," 店") -> 11 店 | R48: =SUM(R5:R47) -> 7000 | S48: =SUM(S5:S47) -> 0 | U48: =CONCATENATE(FIXED(COUNTA(U5:U47),0,0)," 店") -> 0 店 | V48: =SUM(V5:V47) -> 0 | W48: =SUM(W5:W47) -> 0 | X48: =SUM(X5:X47) -> 0
A49: 2026年前期（3月1日以降） | X49: ㈱中日総合サービス

Sheet 松阪市・多気郡
A1: 折込日 | F1: 広告主 | Q1: サイズ | V1: 取次店
F2: チラシ銘柄 | Q2: 部数 | R2: =A6+A30 -> 0
A4: 地区 | D4: 中日新聞 | G4: 枚数 | H4: 朝日新聞 | K4: 枚数 | L4: 毎日新聞 | O4: 枚数 | P4: 読売新聞 | S4: 枚数 | T4: その他 | W4: 枚数 | X4: 備考
A5: 松阪市 | D5: 240230101010 | E5: 松阪中央NSI | F5: 1700 | H5: 240230202010 | I5: 松阪M | J5: 5750 | P5: 240230405001 | Q5: 松阪第一 | R5: 1900 | X5: 松阪市全域の場合
A6: =SUM(G26,K26,O26,S26,W26) -> 0 | B6: =SUM(F26,J26,N26,R26,V26) -> 34600 | D6: 240230101040 | E6: 松阪大黒田NSI | F6: 1600 | H6: 240230202020 | I6: 松阪東部M | J6: 950 | P6: 240230405002 | Q6: 松阪相可 | R6: 400 | X6: 多気郡相可200枚
D7: 240230101100 | E7: 松阪川井町NSI | F7: 1150 | H7: 240230202040 | I7: 三渡川M | J7: 1000 | P7: 240230405003 | Q7: 松阪南 | R7: 700 | X7: をプラス
D8: 240230101080 | E8: 松阪鎌田NＡMSI | F8: 1250 | H8: 240230202050 | I8: 嬉野M | J8: 500 | P8: 240230405009 | Q8: 松阪西部 | R8: 150
D9: 240230101070 | E9: 松阪大平NＡMSI | F9: 2100 | H9: 240230202060 | I9: 粥見M | J9: 250 | P9: 240230405005 | Q9: 松阪北部 | R9: 800
D10: 240230101030 | E10: 松阪まえのへたNSI | F10: 1600 | P10: 240230405007 | Q10: うれしの | R10: 350
D11: 240230101090 | E11: 松阪桜町NSI | F11: 1550 | P11: 240230405008 | Q11: 三雲 | R11: 900
D12: 240230101110 | E12: 松阪徳和NMSI | F12: 1000
D13: 240230101020 | E13: 松阪櫛田NMSI | F13: 1200
C14: *1 | D14: 240230101050 | E14: 松阪片野橋NAMSI | F14: 1300
D15: 240230101130 | E15: 六軒NMSI | F15: 2400 | X15: *1多気郡多気町
D16: 240230101160 | E16: 伊勢中川NASI | F16: 2200 | X16: 1,000枚含む
D17: 240230101140 | E17: 柿野NS | F17: 850
D18: 240230101150 | E18: 飯高NAMSI | F18: 1050
E26: =CONCATENATE(FIXED(COUNTA(E5:E25),0,0)," 店") -> 14 店 | F26: =SUM(F5:F25) -> 20950 | G26: =SUM(G5:G25) -> 0 | I26: =CONCATENATE(FIXED(COUNTA(I5:I25),0,0)," 店") -> 5 店 | J26: =SUM(J5:J25) -> 8450 | K26: =SUM(K5:K25) -> 0 | M26: =CONCATENATE(FIXED(COUNTA(M5:M25),0,0)," 店") -> 0 店 | N26: =SUM(N5:N25) -> 0 | O26: =SUM(O5:O25) -> 0 | Q26: =CONCATENATE(FIXED(COUNTA(Q5:Q25),0,0)," 店") -> 7 店 | R26: =SUM(R5:R25) -> 5200 | S26: =SUM(S5:S25) -> 0 | U26: =CONCATENATE(FIXED(COUNTA(U5:U25),0,0)," 店") -> 0 店 | V26: =SUM(V5:V25) -> 0 | W26: =SUM(W5:W25) -> 0 | X26: =SUM(X5:X25) -> 0
A28: 地区 | D28: 中日新聞 | G28: 枚数 | H28: 朝日新聞 | K28: 枚数 | L28: 毎日新聞 | O28: 枚数 | P28: 読売新聞 | S28: 枚数 | T28: その他 | W28: 枚数 | X28: 備考
A29: 多気郡 | C29: *1 | D29: 240250101010 | E29: 相可NAMSI | F29: 1500 | H29: 240250202020 | I29: 明和松阪MI | J29: 1900 | P29: 240250405002 | Q29: 明和 | R29: 500 | X29: 多気町全域の場合
A30: =SUM(G48,K48,O48,S48,W48) -> 0 | B30: =SUM(F48,J48,N48,R48,V48) -> 8400 | D30: 240250101040 | E30: 明和NSI | F30: 1800 | X30: 松阪市松阪片野橋
C31: *2 | D31: 240250101020 | E31: 三瀬谷NAMSI | F31: 800 | X31: 1,000枚をプラス
D32: 240250101030 | E32: 大台宮川NAMSI | F32: 700
A33: =SUM(F41,J41,N41,R41,V41) -> 0 | B33: =SUM(G41,K41,O41,S41,W41) -> 0 | C33: *3 | D33: 240250101050 | E33: 栃原NAMSI | F33: 1200 | X33: 明和町全域の場合
X34: 伊勢市大淀850枚
X35: をプラス
X37: 大台町全域の場合
X38: 度会郡滝原100枚
X39: をプラス
X41: *1松阪市200枚を含む
X42: *2*3度会郡大紀町の
X43: 一部を含む
E48: =CONCATENATE(FIXED(COUNTA(E29:E47),0,0)," 店") -> 5 店 | F48: =SUM(F29:F47) -> 6000 | G48: =SUM(G29:G47) -> 0 | I48: =CONCATENATE(FIXED(COUNTA(I29:I47),0,0)," 店") -> 1 店 | J48: =SUM(J29:J47) -> 1900 | K48: =SUM(K29:K47) -> 0 | M48: =CONCATENATE(FIXED(COUNTA(M29:M47),0,0)," 店") -> 0 店 | N48: =SUM(N29:N47) -> 0 | O48: =SUM(O29:O47) -> 0 | Q48: =CONCATENATE(FIXED(COUNTA(Q29:Q47),0,0)," 店") -> 1 店 | R48: =SUM(R29:R47) -> 500 | S48: =SUM(S29:S47) -> 0 | U48: =CONCATENATE(FIXED(COUNTA(U29:U47),0,0)," 店") -> 0 店 | V48: =SUM(V29:V47) -> 0 | W48: =SUM(W29:W47) -> 0 | X48: =SUM(X29:X47) -> 0
A49: 2026年前期（3月1日以降） | X49: ㈱中日総合サービス

Sheet 伊勢市・度会郡
A1: 折込日 | F1: 広告主 | Q1: サイズ | V1: 取次店
F2: チラシ銘柄 | Q2: 部数 | R2: =A6+A30 -> 0
A4: 地区 | D4: 中日新聞 | G4: 枚数 | H4: 朝日新聞 | K4: 枚数 | L4: 毎日新聞 | O4: 枚数 | P4: 読売新聞 | S4: 枚数 | T4: その他 | W4: 枚数 | X4: 備考
A5: 伊勢市 | D5: 240305101010 | E5: 伊勢市駅前NS | F5: 1650 | H5: 240305202020 | I5: 五十鈴川I | J5: 950 | L5: 240305303030 | M5: 川端 | N5: 1050 | P5: 240305405001 | Q5: 伊勢西 | R5: 950 | T5: 240305I09015 | U5: 伊勢新聞/伊勢 | V5: 950
A6: =SUM(G26,K26,O26,S26,W26) -> 0 | B6: =SUM(F26,J26,N26,R26,V26) -> 39200 | D6: 240305101030 | E6: 伊勢市厚生NS | F6: 1550 | H6: 240305202050 | I6: 伊勢I | J6: 1850 | L6: 240305303040 | M6: 伊勢 | N6: 1200 | P6: 240305405006 | Q6: 伊勢玉城 | R6: 700
D7: 240305101040 | E7: 伊勢市中央NS | F7: 1650 | H7: 240305202060 | I7: 伊勢田丸M | J7: 1850 | L7: 240305303060 | M7: 伊勢市北部AI | N7: 1650 | P7: 240305405003 | Q7: 伊勢北部 | R7: 1400
D8: 240305101080 | E8: 伊勢市北部NS | F8: 1400 | L8: 240305303110 | M8: 伊勢東部 | N8: 1350 | P8: 240305405004 | Q8: 伊勢神宮前 | R8: 700
D9: 240305101060 | E9: 伊勢市西部NS | F9: 1500 | L9: 240305303080 | M9: 小俣町 | N9: 350 | P9: 240305405005 | Q9: 小俣 | R9: 900
D10: 240305101070 | E10: 伊勢市南部NS | F10: 2250 | L10: 240305303100 | M10: 伊勢二見AI | N10: 1700
D11: 240305101110 | E11: 三重小俣NSI | F11: 2600 | L11: 240305303090 | M11: 玉城S | N11: 950
D12: 240305101130 | E12: 伊勢市東部NS | F12: 1350 | L12: 240305303120 | M12: 神社港AI | N12: 600
C13: *1 | D13: 240305101090 | E13: 大淀NSI | F13: 2050 | X13: *1多気郡明和町明和
D14: 240305101100 | E14: 田丸NI | F14: 2250 | X14: 850枚含む
D15: 240305101120 | E15: わたらいNAMSI | F15: 1850
E26: =CONCATENATE(FIXED(COUNTA(E5:E25),0,0)," 店") -> 11 店 | F26: =SUM(F5:F25) -> 20100 | G26: =SUM(G5:G25) -> 0 | I26: =CONCATENATE(FIXED(COUNTA(I5:I25),0,0)," 店") -> 3 店 | J26: =SUM(J5:J25) -> 4650 | K26: =SUM(K5:K25) -> 0 | M26: =CONCATENATE(FIXED(COUNTA(M5:M25),0,0)," 店") -> 8 店 | N26: =SUM(N5:N25) -> 8850 | O26: =SUM(O5:O25) -> 0 | Q26: =CONCATENATE(FIXED(COUNTA(Q5:Q25),0,0)," 店") -> 5 店 | R26: =SUM(R5:R25) -> 4650 | S26: =SUM(S5:S25) -> 0 | U26: =CONCATENATE(FIXED(COUNTA(U5:U25),0,0)," 店") -> 1 店 | V26: =SUM(V5:V25) -> 950 | W26: =SUM(W5:W25) -> 0 | X26: =SUM(X5:X25) -> 0
A28: 地区 | D28: 中日新聞 | G28: 枚数 | H28: 朝日新聞 | K28: 枚数 | L28: 毎日新聞 | O28: 枚数 | P28: 読売新聞 | S28: 枚数 | T28: その他 | W28: 枚数 | X28: 備考
A29: 度会郡 | C29: *1 | D29: 240354101020 | E29: 滝原NAMSI | F29: 400 | P29: 240354404010 | Q29: 紀勢 | R29: 1150 | X29: 度会郡全域の場合
A30: =SUM(G48,K48,O48,S48,W48) -> 0 | B30: =SUM(F48,J48,N48,R48,V48) -> 6800 | D30: 240354101030 | E30: 阿曽NAMI | F30: 200 | P30: 240355405002 | Q30: 南勢 | R30: 250 | X30: わたらい、田丸（伊勢市欄）
D31: 240354101040 | E31: 大内山NAMSI | F31: 300 | X31: をプラス
D32: 240354101050 | E32: 柏崎NAMSI | F32: 450
D33: 240355101060 | E33: 大紀町錦AMSI | F33: 350
D34: 240355101090 | E34: 三重中島NAMSI | F34: 350 | X34: *1多気郡大台町
D35: 240355101105 | E35: 慥柄AMI | F35: 100 | X35: 100枚含む
D36: 240355101100 | E36: 贄NAMI | F36: 200
D37: 240355101110 | E37: 東宮AMSI | F37: 250
D38: 240355101120 | E38: 吉津（神前）NAMSI | F38: 450
D39: 240355101130 | E39: 島津（古和）NAMSI | F39: 250
D40: 240355101140 | E40: 南勢町東NAMSI | F40: 950
D41: 240355101150 | E41: 南勢町西NAMSI | F41: 1150
E48: =CONCATENATE(FIXED(COUNTA(E29:E47),0,0)," 店") -> 13 店 | F48: =SUM(F29:F47) -> 5400 | G48: =SUM(G29:G47) -> 0 | I48: =CONCATENATE(FIXED(COUNTA(I29:I47),0,0)," 店") -> 0 店 | J48: =SUM(J29:J47) -> 0 | K48: =SUM(K29:K47) -> 0 | M48: =CONCATENATE(FIXED(COUNTA(M29:M47),0,0)," 店") -> 0 店 | N48: =SUM(N29:N47) -> 0 | O48: =SUM(O29:O47) -> 0 | Q48: =CONCATENATE(FIXED(COUNTA(Q29:Q47),0,0)," 店") -> 2 店 | R48: =SUM(R29:R47) -> 1400 | S48: =SUM(S29:S47) -> 0 | U48: =CONCATENATE(FIXED(COUNTA(U29:U47),0,0)," 店") -> 0 店 | V48: =SUM(V29:V47) -> 0 | W48: =SUM(W29:W47) -> 0 | X48: =SUM(X29:X47) -> 0
A49: 2026年前期（3月1日以降） | X49: ㈱中日総合サービス

Sheet 鳥羽市・志摩市・尾鷲市
A1: 折込日 | F1: 広告主 | Q1: サイズ | V1: 取次店
F2: チラシ銘柄 | Q2: 部数 | R2: =A6+A18+A35 -> 0
A4: 地区 | D4: 中日新聞 | G4: 枚数 | H4: 朝日新聞 | K4: 枚数 | L4: 毎日新聞 | O4: 枚数 | P4: 読売新聞 | S4: 枚数 | T4: その他 | W4: 枚数 | X4: 備考
A5: 鳥羽市 | D5: 240340101010 | E5: 鳥羽NAMSI | F5: 1350 | L5: 240340303010 | P5: 240340405001 | Q5: 鳥羽 | R5: 400
A6: =SUM(G14,K14,O14,S14,W14) -> 0 | B6: =SUM(F14,J14,N14,R14,V14) -> 4050 | D6: 240340101020 | E6: 鳥羽南部NAMSI | F6: 1800 | P6: 240340405002 | Q6: 鳥羽南 | R6: 500
E14: =CONCATENATE(FIXED(COUNTA(E5:E13),0,0)," 店") -> 2 店 | F14: =SUM(F5:F13) -> 3150 | G14: =SUM(G5:G13) -> 0 | I14: =CONCATENATE(FIXED(COUNTA(I5:I13),0,0)," 店") -> 0 店 | J14: =SUM(J5:J13) -> 0 | K14: =SUM(K5:K13) -> 0 | M14: =CONCATENATE(FIXED(COUNTA(M5:M13),0,0)," 店") -> 0 店 | N14: =SUM(N5:N13) -> 0 | O14: =SUM(O5:O13) -> 0 | Q14: =CONCATENATE(FIXED(COUNTA(Q5:Q13),0,0)," 店") -> 2 店 | R14: =SUM(R5:R13) -> 900 | S14: =SUM(S5:S13) -> 0 | U14: =CONCATENATE(FIXED(COUNTA(U5:U13),0,0)," 店") -> 0 店 | V14: =SUM(V5:V13) -> 0 | W14: =SUM(W5:W13) -> 0 | X14: =SUM(X5:X13) -> 0
A16: 地区 | D16: 中日新聞 | G16: 枚数 | H16: 朝日新聞 | K16: 枚数 | L16: 毎日新聞 | O16: 枚数 | P16: 読売新聞 | S16: 枚数 | T16: その他 | W16: 枚数 | X16: 備考
A17: 志摩市 | D17: 240349101010 | E17: 磯部NAMSI | F17: 1600 | P17: 240350405005 | Q17: 磯部 | R17: 400
A18: =SUM(G31,K31,O31,S31,W31) -> 0 | B18: =SUM(F31,J31,N31,R31,V31) -> 12250 | D18: 240349101020 | E18: 鵜方NAMSI | F18: 4700 | P18: 240350405004 | Q18: 浜島 | R18: 600
D19: 240350101060 | E19: 浜島NAMSI | F19: 950 | P19: 240350405002 | Q19: 阿児 | R19: 500
D20: 240350101050 | E20: 和具NAMSI | F20: 1750 | P20: 240350405006 | Q20: 鵜方 | R20: 450
P21: 240350405001 | Q21: 大王 | R21: 400
P22: 240350405003 | Q22: 志摩 | R22: 900
E31: =CONCATENATE(FIXED(COUNTA(E17:E30),0,0)," 店") -> 4 店 | F31: =SUM(F17:F30) -> 9000 | G31: =SUM(G17:G30) -> 0 | I31: =CONCATENATE(FIXED(COUNTA(I17:I30),0,0)," 店") -> 0 店 | J31: =SUM(J17:J30) -> 0 | K31: =SUM(K17:K30) -> 0 | M31: =CONCATENATE(FIXED(COUNTA(M17:M30),0,0)," 店") -> 0 店 | N31: =SUM(N17:N30) -> 0 | O31: =SUM(O17:O30) -> 0 | Q31: =CONCATENATE(FIXED(COUNTA(Q17:Q30),0,0)," 店") -> 6 店 | R31: =SUM(R17:R30) -> 3250 | S31: =SUM(S17:S30) -> 0 | U31: =CONCATENATE(FIXED(COUNTA(U17:U30),0,0)," 店") -> 0 店 | V31: =SUM(V17:V30) -> 0 | W31: =SUM(W17:W30) -> 0 | X31: =SUM(X21:X30) -> 0
A33: 地区 | D33: 中日新聞 | G33: 枚数 | H33: 朝日新聞 | K33: 枚数 | L33: 毎日新聞 | O33: 枚数 | P33: 読売新聞 | S33: 枚数 | T33: その他 | W33: 枚数 | X33: 備考
A34: 尾鷲市 | D34: 240345101010 | E34: 尾鷲NAMSI | F34: 2750 | P34: 240345405001 | Q34: 尾鷲 | R34: 850
A35: =SUM(G48,K48,O48,S48,W48) -> 0 | B35: =SUM(F48,J48,N48,R48,V48) -> 4450 | D35: 240345101020 | E35: 九鬼NAMI | F35: 200
D36: 240345101030 | E36: 三木里NAMSI | F36: 350
D37: 240345101040 | E37: 賀田NAMSI | F37: 300
E48: =CONCATENATE(FIXED(COUNTA(E34:E47),0,0)," 店") -> 4 店 | F48: =SUM(F34:F47) -> 3600 | G48: =SUM(G34:G47) -> 0 | I48: =CONCATENATE(FIXED(COUNTA(I34:I47),0,0)," 店") -> 0 店 | J48: =SUM(J34:J47) -> 0 | K48: =SUM(K34:K47) -> 0 | M48: =CONCATENATE(FIXED(COUNTA(M34:M47),0,0)," 店") -> 0 店 | N48: =SUM(N34:N47) -> 0 | O48: =SUM(O34:O47) -> 0 | Q48: =CONCATENATE(FIXED(COUNTA(Q34:Q47),0,0)," 店") -> 1 店 | R48: =SUM(R34:R47) -> 850 | S48: =SUM(S34:S47) -> 0 | U48: =CONCATENATE(FIXED(COUNTA(U34:U47),0,0)," 店") -> 0 店 | V48: =SUM(V34:V47) -> 0 | W48: =SUM(W34:W47) -> 0 | X48: =SUM(X34:X47) -> 0
A49: 2026年前期（3月1日以降） | X49: ㈱中日総合サービス

Sheet 熊野市・北牟婁郡・南牟婁郡
A1: 折込日 | F1: 広告主 | Q1: サイズ | V1: 取次店
F2: チラシ銘柄 | Q2: 部数 | R2: =A6+A18+A34 -> 0
A4: 地区 | D4: 中日新聞 | G4: 枚数 | H4: 朝日新聞 | K4: 枚数 | L4: 毎日新聞 | O4: 枚数 | P4: 読売新聞 | S4: 枚数 | T4: その他 | W4: 枚数 | X4: 備考
A5: 熊野市 | D5: 240320101010 | E5: 熊野 | F5: 1000 | H5: 240320202010 | I5: 熊野MSI | J5: 850 | P5: 240320405001 | Q5: 熊野 | R5: 1050
A6: =SUM(G14,K14,O14,S14,W14) -> 0 | B6: =SUM(F14,J14,N14,R14,V14) -> 5350 | D6: 240320101030 | E6: 御浜・熊野南部AMSI | F6: 2350
D7: 240320101020 | E7: 二木島NAMSI | F7: 100
E14: =CONCATENATE(FIXED(COUNTA(E5:E13),0,0)," 店") -> 3 店 | F14: =SUM(F5:F13) -> 3450 | G14: =SUM(G5:G13) -> 0 | I14: =CONCATENATE(FIXED(COUNTA(I5:I13),0,0)," 店") -> 1 店 | J14: =SUM(J5:J13) -> 850 | K14: =SUM(K5:K13) -> 0 | M14: =CONCATENATE(FIXED(COUNTA(M5:M13),0,0)," 店") -> 0 店 | N14: =SUM(N5:N13) -> 0 | O14: =SUM(O5:O13) -> 0 | Q14: =CONCATENATE(FIXED(COUNTA(Q5:Q13),0,0)," 店") -> 1 店 | R14: =SUM(R5:R13) -> 1050 | S14: =SUM(S5:S13) -> 0 | U14: =CONCATENATE(FIXED(COUNTA(U5:U13),0,0)," 店") -> 0 店 | V14: =SUM(V5:V13) -> 0 | W14: =SUM(W5:W13) -> 0 | X14: =SUM(X5:X13) -> 0
A16: 地区 | D16: 中日新聞 | G16: 枚数 | H16: 朝日新聞 | K16: 枚数 | L16: 毎日新聞 | O16: 枚数 | P16: 読売新聞 | S16: 枚数 | T16: その他 | W16: 枚数 | X16: 備考
A17: 北牟婁郡 | D17: 240360101010 | E17: 紀伊長島NAMSI | F17: 2050 | H17: 240360202030 | P17: 240360405010 | Q17: 紀北町 | R17: 350
A18: =SUM(G30,K30,O30,S30,W30) -> 0 | B18: =SUM(F30,J30,N30,R30,V30) -> 5050 | D18: 240360101030 | E18: 島勝AMSI | F18: 350 | P18: 240360405020 | Q18: 海山 | R18: 200
D19: 240360101020 | E19: 白浦M | F19: 250
D20: 240360101050 | E20: 相賀NAMSI | F20: 1250
D21: 240360101060 | E21: 引本NAMI | F21: 600
E30: =CONCATENATE(FIXED(COUNTA(E17:E29),0,0)," 店") -> 5 店 | F30: =SUM(F17:F29) -> 4500 | G30: =SUM(G17:G29) -> 0 | I30: =CONCATENATE(FIXED(COUNTA(I17:I29),0,0)," 店") -> 0 店 | J30: =SUM(J17:J29) -> 0 | K30: =SUM(K17:K29) -> 0 | M30: =CONCATENATE(FIXED(COUNTA(M17:M29),0,0)," 店") -> 0 店 | N30: =SUM(N17:N29) -> 0 | O30: =SUM(O17:O29) -> 0 | Q30: =CONCATENATE(FIXED(COUNTA(Q17:Q29),0,0)," 店") -> 2 店 | R30: =SUM(R17:R29) -> 550 | S30: =SUM(S17:S29) -> 0 | U30: =CONCATENATE(FIXED(COUNTA(U17:U29),0,0)," 店") -> 0 店 | V30: =SUM(V17:V29) -> 0 | W30: =SUM(W17:W29) -> 0 | X30: =SUM(X20:X29) -> 0
A32: 地区 | D32: 中日新聞 | G32: 枚数 | H32: 朝日新聞 | K32: 枚数 | L32: 毎日新聞 | O32: 枚数 | P32: 読売新聞 | S32: 枚数 | T32: その他 | W32: 枚数 | X32: 備考
A33: 南牟婁郡 | D33: 240365101005 | E33: 井田 | F33: 50 | L33: 240365303020 | M33: 井田AS | N33: 300 | P33: 240365405001 | Q33: 紀伊南郡 | R33: 1550
A34: =SUM(G48,K48,O48,S48,W48) -> 0 | B34: =SUM(F48,J48,N48,R48,V48) -> 4350 | D34: 240365101007 | E34: 井田上野 | F34: 50 | L34: 240365303030 | M34: 井田上野AS | N34: 300
L35: 240365303040 | M35: 鵜殿CAS | N35: 1450
L36: 240365303050 | M36: 成川紀宝CAS | N36: 650
E48: =CONCATENATE(FIXED(COUNTA(E33:E47),0,0)," 店") -> 2 店 | F48: =SUM(F33:F47) -> 100 | G48: =SUM(G33:G47) -> 0 | I48: =CONCATENATE(FIXED(COUNTA(I33:I47),0,0)," 店") -> 0 店 | J48: =SUM(J33:J47) -> 0 | K48: =SUM(K33:K47) -> 0 | M48: =CONCATENATE(FIXED(COUNTA(M33:M47),0,0)," 店") -> 4 店 | N48: =SUM(N33:N47) -> 2700 | O48: =SUM(O33:O47) -> 0 | Q48: =CONCATENATE(FIXED(COUNTA(Q33:Q47),0,0)," 店") -> 1 店 | R48: =SUM(R33:R47) -> 1550 | S48: =SUM(S33:S47) -> 0 | U48: =CONCATENATE(FIXED(COUNTA(U33:U47),0,0)," 店") -> 0 店 | V48: =SUM(V33:V47) -> 0 | W48: =SUM(W33:W47) -> 0 | X48: =SUM(X33:X47) -> 0
A49: 2026年前期（3月1日以降） | X49: ㈱中日総合サービス

Sheet 伊賀市・名張市・新宮市
A1: 折込日 | F1: 広告主 | Q1: サイズ | V1: 取次店
F2: チラシ銘柄 | Q2: 部数 | R2: =A6+A26+A42 -> 0
A4: 地区 | D4: 中日新聞 | G4: 枚数 | H4: 朝日新聞 | K4: 枚数 | L4: 毎日新聞 | O4: 枚数 | P4: 読売新聞 | S4: 枚数 | T4: その他 | W4: 枚数 | X4: 備考
A5: 伊賀市 | D5: 240310101010 | E5: 伊賀上野I | F5: 1550 | H5: 240310202010 | I5: *1上野MS | J5: 2800 | L5: 240330303010 | M5: *2上野北AS | N5: 1050 | P5: 240310405001 | Q5: 伊賀上野M | R5: 2500 | T5: 240310X06010 | U5: 朝日・日経 上野MS | V5: 250 | X5: 日本経済新聞へ折込む場合
A6: =SUM(G22,K22,O22,S22,W22) -> 0 | B6: =SUM(F22,J22,N22,R22,V22) -> 17250 | D6: 240310101020 | E6: 伊賀上野北部 | F6: 1000 | H6: 240310202040 | I6: *3上野南S | J6: 100 | P6: 240310405002 | Q6: 伊賀中央 | R6: 1700 | T6: 240330X06010 | U6: 毎日・日経 上野北AS | V6: 50 | X6: *1…250枚プラス
D7: 240330101070 | E7: 諏訪丸柱I | F7: 100 | H7: 240310201040 | I7: *4依那古CMSI | J7: 350 | T7: 240310X06020 | U7: 朝日・日経 上野南S | V7: 50 | X7: *2…50枚プラス
D8: 240330101030 | E8: 新堂NAMSI | F8: 500 | H8: 240310201070 | I8: *5伊賀神戸CMSI | J8: 500 | T8: 240310X06030 | U8: 朝日・日経 依那古CMSI | V8: 50 | X8: *3…50枚プラス
H9: 240310202050 | I9: *6島ヶ原CMSI | J9: 350 | T9: 240310X06040 | U9: 朝日・日経 伊賀神戸CMSI | V9: 50 | X9: *4…50枚プラス
H10: 240330201020 | I10: *7阿山柘植CMSI | J10: 1400 | T10: 240310X06050 | U10: 朝日・日経 島ヶ原CMSI | V10: 50 | X10: *5…50枚プラス
H11: 240330201050 | I11: *8伊賀山田CMSI | J11: 1150 | T11: 240330X06020 | U11: 朝日・日経 阿山柘植CMSI | V11: 50 | X11: *6…50枚プラス
H12: 240330202010 | I12: *9青山町CMSI | J12: 1550 | T12: 240330X06030 | U12: 朝日・日経 伊賀山田CMSI | V12: 50 | X12: *7…50枚プラス
T13: 240330X06040 | U13: 朝日・日経 青山町CMSI | V13: 50 | X13: *8…50枚プラス
X14: *9…50枚プラス
X16: 伊賀市全域の場合
X17: 名張市
X18: 桔梗ヶ丘・美旗・古山100枚
X19: 名張・上野南部50枚
X20: をプラス
E22: =CONCATENATE(FIXED(COUNTA(E5:E21),0,0)," 店") -> 4 店 | F22: =SUM(F5:F21) -> 3150 | G22: =SUM(G5:G21) -> 0 | I22: =CONCATENATE(FIXED(COUNTA(I5:I21),0,0)," 店") -> 8 店 | J22: =SUM(J5:J21) -> 8200 | K22: =SUM(K5:K21) -> 0 | M22: =CONCATENATE(FIXED(COUNTA(M5:M21),0,0)," 店") -> 1 店 | N22: =SUM(N5:N21) -> 1050 | O22: =SUM(O5:O21) -> 0 | Q22: =CONCATENATE(FIXED(COUNTA(Q5:Q21),0,0)," 店") -> 2 店 | R22: =SUM(R5:R21) -> 4200 | S22: =SUM(S5:S21) -> 0 | U22: =CONCATENATE(FIXED(COUNTA(U5:U21),0,0)," 店") -> 9 店 | V22: =SUM(V5:V21) -> 650 | W22: =SUM(W5:W21) -> 0 | X22: =SUM(X5:X21) -> 0
A24: 地区 | D24: 中日新聞 | G24: 枚数 | H24: 朝日新聞 | K24: 枚数 | L24: 毎日新聞 | O24: 枚数 | P24: 読売新聞 | S24: 枚数 | T24: その他 | W24: 枚数 | X24: 備考
A25: 名張市 | C25: *1 | D25: 240315101030 | E25: 桔梗ヶ丘・美旗・古山 | F25: 450 | H25: 240315202040 | I25: *3名張駅前MS | J25: 2700 | L25: 240315303020 | M25: 名張中央 | N25: 1100 | P25: 240315405001 | Q25: 名張 | R25: 5350 | T25: 240315X06010 | U25: 朝日・日経 名張駅前MS | V25: 200 | X25: *1伊賀市100枚含む
A26: =SUM(G38,K38,O38,S38,W38) -> 0 | B26: =SUM(F38,J38,N38,R38,V38) -> 15700 | C26: *2 | D26: 240315101010 | E26: 名張・上野南部 | F26: 850 | H26: 240315202020 | I26: *4名張中央MS | J26: 3500 | L26: 240315303040 | M26: 名張東 | N26: 900 | T26: 240315X06020 | U26: 朝日・日経 名張中央MS | V26: 250 | X26: *2伊賀市50枚含む
D27: 240315101020 | E27: 名張東部 | F27: 400
X28: 日本経済新聞へ折込む場合
X29: *3…200枚プラス
X30: *4…250枚プラス
E38: =CONCATENATE(FIXED(COUNTA(E25:E37),0,0)," 店") -> 3 店 | F38: =SUM(F25:F37) -> 1700 | G38: =SUM(G25:G37) -> 0 | I38: =CONCATENATE(FIXED(COUNTA(I25:I37),0,0)," 店") -> 2 店 | J38: =SUM(J25:J37) -> 6200 | K38: =SUM(K25:K37) -> 0 | M38: =CONCATENATE(FIXED(COUNTA(M25:M37),0,0)," 店") -> 2 店 | N38: =SUM(N25:N37) -> 2000 | O38: =SUM(O25:O37) -> 0 | Q38: =CONCATENATE(FIXED(COUNTA(Q25:Q37),0,0)," 店") -> 1 店 | R38: =SUM(R25:R37) -> 5350 | S38: =SUM(S25:S37) -> 0 | U38: =CONCATENATE(FIXED(COUNTA(U25:U37),0,0)," 店") -> 2 店 | V38: =SUM(V25:V37) -> 450 | W38: =SUM(W25:W37) -> 0 | X38: =SUM(X28:X37) -> 0
A40: 地区 | D40: 中日新聞 | G40: 枚数 | H40: 朝日新聞 | K40: 枚数 | L40: 毎日新聞 | O40: 枚数 | P40: 読売新聞 | S40: 枚数 | T40: その他 | W40: 枚数 | X40: 備考
A41: 新宮市 | D41: 240325101010 | E41: 新宮 | F41: 350 | L41: 240325303010 | M41: *1新宮AS | N41: 1550 | P41: 240325405001 | Q41: 紀南新宮 | R41: 1000 | T41: 240325X02010 | U41: 毎日・日経新聞/新宮 | V41: 150 | X41: 日本経済新聞へ折込む場合
A42: =SUM(G48,K48,O48,S48,W48) -> 0 | B42: =SUM(F48,J48,N48,R48,V48) -> 4400 | L42: 240325303020 | M42: *2三輪崎 | N42: 500 | P42: 240325405002 | Q42: 新宮西 | R42: 700 | T42: 240325X03010 | U42: 毎日・日経新聞/三輪崎 | V42: 150 | X42: *1…150枚プラス
X43: *2…150枚プラス
E48: =CONCATENATE(FIXED(COUNTA(E41:E47),0,0)," 店") -> 1 店 | F48: =SUM(F41:F47) -> 350 | G48: =SUM(G41:G47) -> 0 | I48: =CONCATENATE(FIXED(COUNTA(I41:I47),0,0)," 店") -> 0 店 | J48: =SUM(J41:J47) -> 0 | K48: =SUM(K41:K47) -> 0 | M48: =CONCATENATE(FIXED(COUNTA(M41:M47),0,0)," 店") -> 2 店 | N48: =SUM(N41:N47) -> 2050 | O48: =SUM(O41:O47) -> 0 | Q48: =CONCATENATE(FIXED(COUNTA(Q41:Q47),0,0)," 店") -> 2 店 | R48: =SUM(R41:R47) -> 1700 | S48: =SUM(S41:S47) -> 0 | U48: =CONCATENATE(FIXED(COUNTA(U41:U47),0,0)," 店") -> 2 店 | V48: =SUM(V41:V47) -> 300 | W48: =SUM(W41:W47) -> 0 | X48: =SUM(X41:X47) -> 0
A49: 2026年前期（3月1日以降） | X49: ㈱中日総合サービス
